Cogmind - Beta 10.2 @@@ ROGUE MODE // 2021.01.13 @ 12:44:23 Player: Wyvric Result: Destroyed by P-70 Sage with High-powered Shock Rifle Performance ------------- Evolutions (5) 2500 Regions Visited (19) 3800 Robots Destroyed (177) 885 Value Destroyed (7876) 7876 Prototype IDs (28) 560 Alien Tech Used (1) 200 Bonus (7245) 7245 TOTAL SCORE: 23066 Bonus ------- High Alert Combat Kills 330 Follower Combat Kills 72 Met Data Miner 300 Met Imprinter 300 Met Warlord at Base 500 MAIN.C Attacked Warlord 500 Warlord Defense Kill 5998 Friendly Fire -755 Cogmind --------- Core Integrity 0/1000 Matter 105/300 Energy 14/100 System Corruption 14% Temperature Cool (0) Movement Core (800) Ox15 Location -5/Warlord Parts ------- > --- POWER (1) -------- (None) > --- PROPULSION (3) --- (None) > --- UTILITY (9) ------ Large Storage Unit High-capacity Storage Unit Experimental Targeting Computer Experimental Core Analyzer Advanced Armor Integrity Analyzer > --- WEAPON (4) ------- (None) > --- INVENTORY (18) --- Improved Thermal Shield System Mapper System Purifier Hacking Drone Bay Makeshift Shrapnel Gun Enhanced Gauss Cannon Molecular Deconstructor Peak State ------------ > --- POWER ------------ Neutrino Core > --- PROPULSION ------- Medium Treads Spiked Medium Treads Armored Medium Treads > --- UTILITY ---------- Large Storage Unit High-capacity Storage Unit High-capacity Storage Unit Experimental Targeting Computer Experimental Core Analyzer Advanced Armor Integrity Analyzer Advanced Kinecellerator Improved Weapon Cycler Experimental Phase Shifter > --- WEAPON ----------- Helical Railgun Helical Railgun Heavy Flak Cannon Heavy Flak Cannon > --- INVENTORY -------- Micro Fission Core Armored Huge Wheel Advanced Cooling System Matter Compressor Long-range Sensor Array Long-range Terrain Scanner Improved Transmission Jammer Layered Medium Armor Plating Improved Thermal Shield Advanced Shield Generator Long-range Tractor Beam Vortex Shotgun Phase Cannon Makeshift Shrapnel Gun Coil Gun Heavy Flak Cannon Heavy Flak Cannon Heavy Flak Cannon Enhanced Gauss Cannon Hypervelocity Gauss Cannon Tri-rail Accelerator Heavy Missile Launcher Long-range Missile Launcher [Rating: 113] Favorites ----------- Power Improved Ion Engine Engine Improved Ion Engine Power Core Light Nuclear Core Reactor Light Antimatter Reactor Propulsion Armored Wheel Treads Improved Treads Leg Aluminum Leg Wheel Armored Wheel Utility Large Storage Unit Device Long-range Terrain Scanner Storage Large Storage Unit Processor Advanced Terrain Scan Processor Hackware Makeshift System Shield Protection Reflective Plating Weapon Coil Gun Energy Gun Precision Shock Rifle Energy Cannon Neutron Cannon Ballistic Gun Coil Gun Ballistic Cannon Heavy Flak Cannon Launcher Rocket Launcher Special Weapon Molecular Deconstructor Impact Weapon Heavy Mace Slashing Weapon Greatsword Piercing Weapon CR-A16's Pointy Stick Build | -11 -10 -10 -10 -9 -8 -7 -7 -7 -7 -6 -6 -6 -6 -6 -5 -5 -5 -5 -5 ------- Run | Scr Mat Min Exi Min Mat Fac Low Low Zio Pro Fac Low Low Dat Pro Fac Upp Upp War Slots Evolved 10 | . . . . . 4 2 . . . . 2 . . . . 2 . . . Power . | . . . . . . . . . . . . . . . . . . . . Propulsion 1 | . . . . . . . . . . . . . . . . 1 . . . Utility 7 | . . . . . 2 2 . . . . 2 . . . . 1 . . . Weapon 2 | . . . . . 2 . . . . . . . . . . . . . . Parts Attached 371 | 6 14 4 1 7 19 15 20 16 4 5 62 27 18 . 23 37 5 12 76 Power 14 | 1 1 1 . . 2 . 1 1 . . 3 . . . 1 1 1 . 1 Engine 6 | 1 1 1 . . 1 . . 1 . . 1 . . . . . . . . Core 5 | . . . . . 1 . 1 . . . 1 . . . . . 1 . 1 Reactor 3 | . . . . . . . . . . . 1 . . . 1 1 . . . Propulsion 50 | 2 3 1 . 5 2 6 . 1 . . 7 . . . 2 3 . 2 16 Treads 19 | . . . . 1 2 2 . . . . 3 . . . 1 . . 1 9 Leg 14 | 2 3 1 . 1 . . . . . . . . . . . 1 . . 6 Wheel 17 | . . . . 3 . 4 . 1 . . 4 . . . 1 2 . 1 1 Hover . | . . . . . . . . . . . . . . . . . . . . Flight . | . . . . . . . . . . . . . . . . . . . . Utility 183 | 1 4 . . . 6 3 11 5 1 4 27 21 18 . 14 17 4 7 40 Device 115 | . . . . . . . 5 3 . 2 15 16 15 . 10 10 4 5 30 Storage 14 | 1 4 . . . 1 . . . 1 . 1 . 1 . . 4 . . 1 Processor 15 | . . . . . . 2 2 . . 1 2 1 . . . 1 . 1 5 Hackware 2 | . . . . . . . . . . . 2 . . . . . . . . Protection 37 | . . . . . 5 1 4 2 . 1 7 4 2 . 4 2 . 1 4 Artifact . | . . . . . . . . . . . . . . . . . . . . Weapon 124 | 2 6 2 1 2 9 6 8 9 3 1 25 6 . . 6 16 . 3 19 Energy Gun 14 | 1 3 . . . . 2 . . . . 3 1 . . . 4 . . . Energy Cannon 14 | . . . . . 5 2 2 . . . . . . . . 4 . 1 . Ballistic Gun 47 | 1 2 1 1 1 3 1 1 5 . 1 12 4 . . 4 6 . . 4 Ballistic Cannon 11 | . . . . . . . . . . . . . . . . 1 . . 10 Launcher 19 | . 1 1 . 1 1 . 2 . 2 . 1 1 . . 1 1 . 2 5 Special Weapon 2 | . . . . . . . 1 . . . . . . . 1 . . . . Impact Weapon 4 | . . . . . . . . 4 . . . . . . . . . . . Slashing Weapon 3 | . . . . . . 1 2 . . . . . . . . . . . . Piercing Weapon 10 | . . . . . . . . . 1 . 9 . . . . . . . . Special Melee Weapon . | . . . . . . . . . . . . . . . . . . . . Unidentified Prototypes 16 | . . . . . 1 2 1 . 1 . 2 . . . 1 1 . . 7 Parts Lost 39 | . 3 . . . 2 1 . 4 . . 1 1 . . 1 4 . . 22 Power 6 | . 1 . . . 1 . . 1 . . . . . . . 1 . . 2 Propulsion 10 | . 1 . . . . . . . . . . . . . . 1 . . 8 Utility 6 | . . . . . 1 . . . . . . . . . . . . . 5 Weapon 17 | . 1 . . . . 1 . 3 . . 1 1 . . 1 2 . . 7 Highest Loss Streak 15 | . 1 . . . 2 1 . 4 . . 1 1 . . 1 3 . . 15 Average Slot Usage (%) 97 | . 99 100 100 100 97 99 92 99 100 100 98 99 99 100 99 97 94 94 95 Engine 4 | . 13 14 14 14 4 . . 6 7 7 4 6 6 6 1 . . . . Core 1 | . . . . . 3 7 7 . . . . . . . . . . 5 5 Treads 1 | . . . . . 8 10 . . . . . . . . 1 . . 4 5 Leg 2 | . 28 28 28 26 . . . . . . . . . . . 1 . . 2 Wheel 11 | . . . . 1 9 4 15 15 15 15 12 13 13 13 11 13 11 5 4 Device 8 | . . . . . . . 6 6 2 6 6 12 12 13 12 10 11 10 12 Storage 25 | . 27 28 28 28 26 23 23 23 27 23 26 26 26 26 26 29 29 29 21 Processor 11 | . . . . . . 14 15 15 15 15 13 13 13 13 13 11 11 11 14 Energy Gun 1 | . 22 . . . . . . . . . 2 14 . . . 3 . . . Energy Cannon 2 | . . . . . 13 25 . . . . . . . . . 4 5 10 . Ballistic Gun 18 | . 5 27 28 28 20 3 9 22 23 26 19 5 26 26 25 13 17 11 12 Launcher 1 | . . . . . . . 4 1 3 . . 1 . . . . . . 3 Naked Turns . | . . . . . . . . . . . . . . . . . . . . Heaviest Build 163 | 9 59 60 59 59 89 92 88 93 106 103 124 125 140 135 149 161 154 163 159 Greatest Support 83 | 20 20 20 20 20 43 43 24 24 24 24 24 24 24 24 30 40 40 40 83 Greatest Overweight (x) 10 | 2 2 2 2 2 4 3 3 3 4 4 10 5 5 5 5 6 3 6 4 Average Overweight (x) 3 | . 1 2 2 2 3 2 3 2 3 3 4 4 4 5 4 3 3 5 2 Largest Inventory Capacity 38 | 6 18 18 18 18 24 24 24 24 30 30 30 30 32 32 32 38 38 38 38 Average Capacity 28 | 5 14 18 18 18 23 24 24 24 28 24 30 30 31 32 32 37 38 38 30 Most Carried 38 | 6 18 18 18 18 24 24 24 24 30 28 30 30 32 32 32 38 38 38 38 Average Carried 28 | 4 11 17 17 17 23 23 23 23 27 24 29 29 31 32 31 35 37 37 29 Final Capacity 38 | 6 18 18 18 18 24 24 24 24 30 24 30 30 32 32 32 38 38 38 18 Final Carried 38 | 6 17 18 18 18 24 24 24 24 28 24 29 30 32 32 32 38 38 38 8 Class Distribution -------------------- 42% | Hauler-Skirmisher 32% | Hauler-Assassin 9% | Hauler-Mutant 8% | Mutant Dominant Class ---------------- Mutant | -10/Materials Mutant | -10/Mines Mutant | -10/Exiles Mutant | -9/Mines Hauler-Tank | -8/Materials Hauler-Gunner | -7/Factory Hauler-Assassin | -7/Lower Caves Hauler-Assassin | -7/Lower Caves Hauler-Mutant | -7/Zion Hauler-Assassin | -6/Proximity Caves Hauler-Assassin | -6/Factory Hauler-Assassin | -6/Lower Caves Hauler-Skirmisher | -6/Lower Caves Hauler-Skirmisher | -6/Data Miner Hauler-Skirmisher | -5/Proximity Caves Hauler-Mutant | -5/Factory Hauler-Skirmisher | -5/Upper Caves Hauler-Skirmisher | -5/Upper Caves Scavenger-Gunner | -5/Warlord Resources | -11 -10 -10 -10 -9 -8 -7 -7 -7 -7 -6 -6 -6 -6 -6 -5 -5 -5 -5 -5 ----------- Run | Scr Mat Min Exi Min Mat Fac Low Low Zio Pro Fac Low Low Dat Pro Fac Upp Upp War Matter Collected 8207 | 204 177 93 . 92 726 120 403 543 30 82 1175 764 487 . 581 254 462 190 1824 Remotely 1806 | . . . . . . . . . . . . 93 263 . . . 99 . 1351 Salvage Created 6039 | . 477 132 . 111 773 190 211 358 . 50 1134 247 153 . 212 355 . 55 1581 Parts 284 | . 33 8 . 6 45 5 8 18 . 5 49 4 5 . 13 27 . 1 57 Haulers Intercepted . | . . . . . . . . . . . . . . . . . . . . Recyclers Shooed 3 | . . . . . . . . . . . 1 . . . . 2 . . . Parts Field Recycled . | . . . . . . . . . . . . . . . . . . . . Retrieved Matter . | . . . . . . . . . . . . . . . . . . . . Parts Self-Destructed 184 | . . . . . . . 7 12 . 8 . 1 5 . 15 . . 1 135 Prevented 11 | . . . . . . . . . . . . 3 . . 3 . . . 5 Kills | -11 -10 -10 -10 -9 -8 -7 -7 -7 -7 -6 -6 -6 -6 -6 -5 -5 -5 -5 -5 ------- Run | Scr Mat Min Exi Min Mat Fac Low Low Zio Pro Fac Low Low Dat Pro Fac Upp Upp War Combat Hostiles Destroyed 165 | . 15 5 . 7 19 3 9 10 . 2 17 9 2 . 7 7 . 1 52 Melee 2 | . . . . . . . 1 . . . 1 . . . . . . . . Guns 64 | . 12 2 . 5 12 . . 4 . 2 13 . 2 . 2 1 . . 9 Cannons 23 | . . . . . 2 3 . . . . . . . . . 3 . 1 14 AOE 72 | . 3 3 . 2 4 . 8 6 . . 3 7 . . 5 2 . . 29 Classes Destroyed 20 | . 3 . . . 3 . 3 2 . . 2 . . . 1 1 . . 5 Worker 3 | . 1 . . . . . . . . . 2 . . . . . . . . Builder 2 | . . . . . . . . . . . . . . . . 2 . . . Recycler 2 | . . . . . . . . . . . 2 . . . . . . . . Operator 1 | . . . . . 1 . . . . . . . . . . . . . . Watcher 2 | . . . . . 1 . . . . . . . . . . 1 . . . Swarmer 40 | . 6 3 . 4 4 . . 4 . 2 3 3 . . 5 . . . 6 Saboteur 3 | . . . . . . . . . . . . . . . . . . . 3 Grunt 70 | . 9 3 . 4 10 2 4 3 . . 7 4 2 . . 2 . . 20 Brawler 5 | . . . . . . . . . . . 1 1 . . . . . . 3 Duelist 3 | . . . . . . . . 1 . . . . . . . . . . 2 Protector 3 | . . . . . . . . . . . . . . . . . . . 3 Sentry 10 | . . . . . 5 1 . . . . 3 . . . . 1 . . . Demolisher 1 | . . . . . . . . . . . . . . . . . . . 1 Specialist 6 | . . . . . . . 2 . . . . . . . . . . . 4 Hunter 9 | . . . . . . . 2 1 . . . . . . . 2 . 1 3 Programmer 10 | . . . . . . . 1 . . . 3 1 . . 1 2 . . 2 Behemoth 2 | . . . . . . . . . . . . . . . 1 . . . 1 Striker 3 | . . . . . . . . . . . . . . . . . . . 3 Executioner 1 | . . . . . . . . . . . . . . . . . . . 1 Decomposer 1 | . . . . . . . . . . . . . 1 . . . . . . Mutant 1 | . . . . . . . . 1 . . . . . . . . . . . Best Kill Streak 20 | . 4 3 . 3 4 2 3 4 . 2 4 4 1 . 5 4 . 1 20 Combat Bots Only 20 | . 4 3 . 3 4 2 3 4 . 2 3 4 1 . 5 3 . 1 20 Max Kills in Single Turn 5 | . 2 3 . 3 2 1 1 2 . 1 3 2 1 . 5 1 . 1 3 Gunslinging . | . . . . . . . . . . . . . . . . . . . . Exploded 5 | . 1 3 . 2 2 . 1 2 . . 2 2 . . 5 1 . . 3 Melee 1 | . . . . . . . 1 . . . 1 . . . . . . . . Uniques/NPCs Destroyed . | . . . . . . . . . . . . . . . . . . . . Combat | -11 -10 -10 -10 -9 -8 -7 -7 -7 -7 -6 -6 -6 -6 -6 -5 -5 -5 -5 -5 -------- Run | Scr Mat Min Exi Min Mat Fac Low Low Zio Pro Fac Low Low Dat Pro Fac Upp Upp War Damage Taken 13435 | . 558 174 . 125 925 337 564 340 . 32 2310 480 . . 793 792 . 150 5855 Core 1722 | . 98 22 . 10 85 30 87 63 . . 286 29 . . . 35 . . 977 Absorbed by Shields 433 | . . . . . . . . . . . 116 . . . . . . . 317 Core Remaining (%) 73 | 100 . . . 48 84 . . . . 74 . . . . 62 . . . . Volleys Fired 323 | . 28 9 . 7 40 9 19 16 . 2 42 18 4 . 18 33 1 5 72 Largest 4 | . 2 2 . 2 4 4 2 4 . 3 4 2 4 . 4 4 1 2 4 Hottest 261 | . 90 46 . 46 224 224 66 113 . 85 124 110 120 . 120 261 90 180 182 Shots Fired 847 | . 53 16 . 13 138 24 27 41 . 6 155 24 16 . 62 68 1 9 194 Gun 601 | . 50 14 . 12 116 4 . 35 . 6 153 12 16 . 59 31 . . 93 Cannon 158 | . . . . . 19 20 . . . . . . . . . 33 1 9 76 Launcher 86 | . 3 2 . 1 3 . 27 6 . . 2 12 . . 1 4 . . 25 Special 2 | . . . . . . . . . . . . . . . 2 . . . . Kinetic 609 | . 11 14 . 12 116 4 . 35 . 6 147 . 16 . 59 20 . . 169 Thermal 84 | . 39 . . . . . . . . . . . . . . 35 1 9 . Explosive 86 | . 3 2 . 1 3 . 27 6 . . 2 12 . . 1 4 . . 25 Electromagnetic 66 | . . . . . 19 20 . . . . 6 12 . . . 9 . . . Robot Hit Streak 24 | . 10 5 . 5 12 10 9 9 . 2 13 9 5 . 11 10 . 3 24 Robot Miss Streak 8 | . 2 2 . 1 6 2 2 4 . 2 5 3 2 . 3 5 . 2 8 Penetration Max 2 | . . . . . . . . . . . 2 . . . . . . . 2 Secondary Targets 9 | . 1 1 . . 3 . . . . 1 3 . . . . . . . . Max Gunslinging Chain 1 | . 1 1 . . 1 . . . . 1 1 . . . . . . . . Shots Hit Robots 590 | . 36 12 . 7 102 18 14 30 . 2 112 17 10 . 42 38 . 4 146 Core Hits 540 | . 24 10 . 10 49 7 21 20 . 3 68 15 4 . 11 19 . 2 277 Critical Hits 25 | . . . . . 2 . . 1 . . 5 . . . 3 1 . 1 12 Critical Kills 9 | . . . . . 2 . . . . . 2 . . . . 1 . 1 3 Critical Parts Destroyed 15 | . . . . . . . . 1 . . 3 . . . 3 . . . 8 Melee Attacks 74 | . . . . . . 2 9 13 3 . 46 1 . . . . . . . Impact 10 | . . . . . . . . 10 . . . . . . . . . . . Slashing 14 | . . . . . . 2 9 3 . . . . . . . . . . . Piercing 50 | . . . . . . . . . 3 . 46 1 . . . . . . . Sneak Attacks 3 | . . . . . . . 1 . . . 2 . . . . . . . . Combat Hostiles 1 | . . . . . . . 1 . . . . . . . . . . . . Follow-up Attacks . | . . . . . . . . . . . . . . . . . . . . Damage Inflicted 25803 | . 507 402 . 618 1550 468 1477 1290 . 60 2497 1142 216 . 1142 1754 . 124 12556 Guns 8723 | . 352 153 . 131 1014 55 . 432 . 60 1956 230 216 . 838 481 . . 2805 Cannons 3489 | . . . . . 367 313 . . . . . . . . . 497 . 124 2188 Explosions 12694 | . 155 249 . 487 169 44 1299 462 . . 274 912 . . 304 776 . . 7563 Melee 897 | . . . . . . 56 178 396 . . 267 . . . . . . . . Ramming . | . . . . . . . . . . . . . . . . . . . . Kinetic 10104 | . 53 153 . 131 1014 55 . 432 . 60 1893 . 216 . 838 266 . . 4993 Thermal 1356 | . 299 . . 364 . 44 . . . . . . . . . 525 . 124 . Explosive 12286 | . 155 249 . 123 169 . 1299 462 . . 274 912 . . 304 776 . . 7563 Electromagnetic 1160 | . . . . . 367 313 . . . . 63 230 . . . 187 . . . Impact . | . . . . . . . . . . . . . . . . . . . . Slashing 630 | . . . . . . 56 178 396 . . . . . . . . . . . Piercing 267 | . . . . . . . . . . . 267 . . . . . . . . Highest Corruption 14 | . . . . . . . 1 1 1 . 3 1 . . 1 2 2 . 14 Average Corruption 1 | . . . . . . . 1 1 1 . 1 1 . . 1 1 1 . 2 Corruption Purged 9 | . . . . . . . . . . . 4 2 . . 1 . 2 . . Effects 39 | . . . . . . . 3 13 1 . 6 3 . . 4 5 2 . 2 Message Errors 17 | . . . . . . . 1 7 . . 3 2 . . 2 1 1 . . Heat Flow Errors 1 | . . . . . . . . . . . . . . . . 1 . . . Energy Discharges 4 | . . . . . . . . 3 . . . . . . 1 . . . . Data Loss (minor) 11 | . . . . . . . 2 3 1 . 2 1 . . 1 . 1 . . Targeting Errors 6 | . . . . . . . . . . . 1 . . . . 3 . . 2 Overload Shots . | . . . . . . . . . . . . . . . . . . . . Overflow Damage 990 | . 4 . . 41 36 30 183 375 . . . 32 . . . 43 . . 246 Projectiles 60 | . . . . . 36 19 . . . . . . . . . 3 . . 2 Explosions 387 | . 4 . . 41 . . 24 2 . . . 32 . . . 40 . . 244 Melee 543 | . . . . . . 11 159 373 . . . . . . . . . . . Knockbacks 35 | . . . . . . . . . . . . . . . . . . . 35 Impact . | . . . . . . . . . . . . . . . . . . . . Kinetic 34 | . . . . . . . . . . . . . . . . . . . 34 Secondary 1 | . . . . . . . . . . . . . . . . . . . 1 Self-Inflicted Damage 270 | . 39 29 . 38 4 52 . 30 . . . 38 . . . . . . 40 Shots 8 | . 1 1 . 1 1 1 . 1 . . . 1 . . . . . . 1 Rammed . | . . . . . . . . . . . . . . . . . . . . Targets Rammed . | . . . . . . . . . . . . . . . . . . . . Kicked . | . . . . . . . . . . . . . . . . . . . . Crushed . | . . . . . . . . . . . . . . . . . . . . Highest Temperature 356 | . 138 10 . 17 176 192 4 99 . 28 319 273 54 . 212 204 28 199 356 Average Temperature 81 | . 45 4 . 15 63 105 2 42 . 21 98 147 26 . 66 75 21 116 112 Received Heat Transfer 2303 | . 222 75 . 24 405 108 99 54 . . 596 90 . . 36 54 . . 540 Effects 3 | . . . . . . . . . . . . . . . . . . . 3 Interference 3 | . . . . . . . . . . . . . . . . . . . 3 Siege Activations . | . . . . . . . . . . . . . . . . . . . . Robots Corrupted 5 | . . . . . 2 . . . . . . 2 . . . 1 . . . Combat Hostiles 4 | . . . . . 1 . . . . . . 2 . . . 1 . . . Parts Fried 8 | . . . . . 4 2 . . . . . . . . . 2 . . . Impact Corruptions . | . . . . . . . . . . . . . . . . . . . . Robots Melted . | . . . . . . . . . . . . . . . . . . . . Combat Hostiles . | . . . . . . . . . . . . . . . . . . . . Parts Melted 2 | . 1 . . . . . . . . . . . . . . . . . 1 Heat Transferred 1854 | . 770 . . 500 . 50 . . . . . . . . . 398 . 136 . Parts Sabotaged 3 | . . . . . . . . . . . . . . . . . . . 3 Parts Stolen . | . . . . . . . . . . . . . . . . . . . . Parts Stripped . | . . . . . . . . . . . . . . . . . . . . Power Chain Reactions 1 | . . . . . . 1 . . . . . . . . . . . . . Missiles Intercepted . | . . . . . . . . . . . . . . . . . . . . Alert | -11 -10 -10 -10 -9 -8 -7 -7 -7 -7 -6 -6 -6 -6 -6 -5 -5 -5 -5 -5 ------- Run | Scr Mat Min Exi Min Mat Fac Low Low Zio Pro Fac Low Low Dat Pro Fac Upp Upp War Peak Influence 342 | . 320 155 . 287 342 185 . . . . 204 . . . . 178 . . . Initial 105 | . . 105 . . 55 63 . . . . . . . . . . . . . Average 108 | . 184 60 . 210 193 77 . . . . 84 . . . . 54 . . . Maximum Alert Level 1 | . 1 . . 1 1 . . . . . 1 . . . . . . . . Low Security (%) 82 | 100 43 100 . 32 50 100 . . . . 98 . . . . 100 . . . Level 1 17 | . 56 . . 67 49 . . . . . 1 . . . . . . . . Level 2 . | . . . . . . . . . . . . . . . . . . . . Level 3 . | . . . . . . . . . . . . . . . . . . . . Level 4 . | . . . . . . . . . . . . . . . . . . . . Level 5 . | . . . . . . . . . . . . . . . . . . . . High Security . | . . . . . . . . . . . . . . . . . . . . Max Security . | . . . . . . . . . . . . . . . . . . . . Squads Dispatched 16 | . 2 . . . 3 . . . . . 7 . . . . 4 . . . Investigation 3 | . 1 . . . . . . . . . 2 . . . . . . . . Extermination 4 | . . . . . . . . . . . 3 . . . . 1 . . . Reinforcement 9 | . 1 . . . 3 . . . . . 2 . . . . 3 . . . Assault . | . . . . . . . . . . . . . . . . . . . . Garrison . | . . . . . . . . . . . . . . . . . . . . Intercept . | . . . . . . . . . . . . . . . . . . . . Construction Impeded . | . . . . . . . . . . . . . . . . . . . . Haulers Reinforced 1 | . . . . . . . . . . . . . . . . 1 . . . Stealth | -11 -10 -10 -10 -9 -8 -7 -7 -7 -7 -6 -6 -6 -6 -6 -5 -5 -5 -5 -5 --------- Run | Scr Mat Min Exi Min Mat Fac Low Low Zio Pro Fac Low Low Dat Pro Fac Upp Upp War Distress Signals 6 | . 1 . . . 3 . . . . . 1 . . . . . . . 1 Communications Jammed . | . . . . . . . . . . . . . . . . . . . . Distress Signals . | . . . . . . . . . . . . . . . . . . . . Times Spotted 304 | . 18 5 . 9 29 11 14 10 . 2 41 6 1 . 7 10 . 1 140 Peak Tracking Total 18 | . 4 3 . 4 5 5 4 4 . 2 6 3 1 . 5 3 . 1 18 Tactical Retreats 19 | . 1 . . 1 1 1 6 . . . 3 . 1 . . . . . 5 Traps | -11 -10 -10 -10 -9 -8 -7 -7 -7 -7 -6 -6 -6 -6 -6 -5 -5 -5 -5 -5 ------- Run | Scr Mat Min Exi Min Mat Fac Low Low Zio Pro Fac Low Low Dat Pro Fac Upp Upp War Traps Triggered 3 | . . . . . . 1 . . . . 2 . . . . . . . . Indirectly . | . . . . . . . . . . . . . . . . . . . . Trap Hack Attempts . | . . . . . . . . . . . . . . . . . . . . Triggered . | . . . . . . . . . . . . . . . . . . . . Disarmed . | . . . . . . . . . . . . . . . . . . . . Reprogrammed . | . . . . . . . . . . . . . . . . . . . . Reused . | . . . . . . . . . . . . . . . . . . . . Traps Extracted . | . . . . . . . . . . . . . . . . . . . . Installed . | . . . . . . . . . . . . . . . . . . . . Triggered 17 | . . . . . . . . 1 . . . . 2 . 1 1 1 . 11 Machines | -11 -10 -10 -10 -9 -8 -7 -7 -7 -7 -6 -6 -6 -6 -6 -5 -5 -5 -5 -5 ---------- Run | Scr Mat Min Exi Min Mat Fac Low Low Zio Pro Fac Low Low Dat Pro Fac Upp Upp War Machines Disabled 18 | . 1 . . 9 2 . 1 1 . . 2 . . . . 1 . . 1 Max in Single Turn 9 | . 1 . . 9 1 . 1 1 . . 1 . . . . 1 . . 1 Machines Sabotaged . | . . . . . . . . . . . . . . . . . . . . Garrisons Compromised . | . . . . . . . . . . . . . . . . . . . . Overloaded Fab Kills . | . . . . . . . . . . . . . . . . . . . . Fab Network Shutdowns . | . . . . . . . . . . . . . . . . . . . . Hacking | -11 -10 -10 -10 -9 -8 -7 -7 -7 -7 -6 -6 -6 -6 -6 -5 -5 -5 -5 -5 --------- Run | Scr Mat Min Exi Min Mat Fac Low Low Zio Pro Fac Low Low Dat Pro Fac Upp Upp War Machines Accessed 43 | . 3 1 1 . 5 3 1 1 . . 13 1 . 4 1 4 1 1 3 Terminals 21 | . 2 . . . 4 3 . . . . 9 . . . . 3 . . . Fabricators 2 | . . . . . . . . . . . 2 . . . . . . . . Repair Stations . | . . . . . . . . . . . . . . . . . . . . Recycling Units 1 | . 1 . . . . . . . . . . . . . . . . . . Scanalyzers 3 | . . . . . 1 . . . . . 1 . . . . 1 . . . Garrison Access 1 | . . . . . . . . . . . 1 . . . . . . . . Total Hacks 147 | . 7 1 23 . 20 8 1 1 . . 30 1 . 31 1 11 1 2 9 Successful 105 | . 4 1 23 . 11 2 1 1 . . 12 1 . 31 1 5 1 2 9 Failed 42 | . 3 . . . 9 6 . . . . 18 . . . . 6 . . . Catastrophic 12 | . . . . . 5 . . . . . 6 . . . . 1 . . . Database Lockouts . | . . . . . . . . . . . . . . . . . . . . Manual 52 | . 6 . . . 14 5 1 . . . 17 . . . . 8 . . 1 Terminals 54 | . 5 . . . 15 8 . . . . 18 . . . . 8 . . . Fabricators 8 | . . . . . . . . . . . 8 . . . . . . . . Repair Stations . | . . . . . . . . . . . . . . . . . . . . Recycling Units 2 | . 2 . . . . . . . . . . . . . . . . . . Scanalyzers 10 | . . . . . 5 . . . . . 2 . . . . 3 . . . Garrison Access 2 | . . . . . . . . . . . 2 . . . . . . . . Terminal Hacks 78 | . . 1 23 . 3 1 1 1 . . 1 1 . 31 1 2 1 2 9 Record 45 | . . . 23 . . . . . . . . . . 11 1 . . 2 8 Part Schematic 9 | . . . . . . . . . . . . . . 8 . 1 . . . Robot Schematic 9 | . . . . . . . . . . . . . . 9 . . . . . Prototype ID Bank 3 | . . . . . . . . . . . . . . 3 . . . . . Open Door 6 | . . 1 . . . . 1 1 . . . 1 . . . . 1 . 1 Branch Access Points 2 | . . . . . . . . . . . 1 . . . . 1 . . . Unreport Threat 2 | . . . . . 2 . . . . . . . . . . . . . . Locate Traps 1 | . . . . . . 1 . . . . . . . . . . . . . Zone Layout 1 | . . . . . 1 . . . . . . . . . . . . . . Fabricator Hacks 5 | . . . . . . . . . . . 5 . . . . . . . . Load Schematic 2 | . . . . . . . . . . . 2 . . . . . . . . Build 3 | . . . . . . . . . . . 3 . . . . . . . . Repair Station Hacks . | . . . . . . . . . . . . . . . . . . . . Recycling Unit Hacks 1 | . 1 . . . . . . . . . . . . . . . . . . Retrieve Components 1 | . 1 . . . . . . . . . . . . . . . . . . Scanalyzer 7 | . . . . . 5 . . . . . 1 . . . . 1 . . . Insert Component 5 | . . . . . 3 . . . . . 1 . . . . 1 . . . Analyze 2 | . . . . . 2 . . . . . . . . . . . . . . Garrison Access Hacks . | . . . . . . . . . . . . . . . . . . . . Unauthorized Hacks 14 | . 3 . . . 3 1 . . . . 5 . . . . 2 . . . Terminals 12 | . 2 . . . 3 1 . . . . 4 . . . . 2 . . . Assimilate 1 | . 1 . . . . . . . . . . . . . . . . . . Botnet 8 | . 1 . . . 2 1 . . . . 2 . . . . 2 . . . Disrupt 3 | . . . . . 1 . . . . . 2 . . . . . . . . Fabricators 1 | . . . . . . . . . . . 1 . . . . . . . . Prioritize 1 | . . . . . . . . . . . 1 . . . . . . . . Repair Stations . | . . . . . . . . . . . . . . . . . . . . Recycling Units 1 | . 1 . . . . . . . . . . . . . . . . . . Tunnel 1 | . 1 . . . . . . . . . . . . . . . . . . Scanalyzers . | . . . . . . . . . . . . . . . . . . . . Garrison Access . | . . . . . . . . . . . . . . . . . . . . Data Cores Recovered . | . . . . . . . . . . . . . . . . . . . . Used . | . . . . . . . . . . . . . . . . . . . . Hacking Detections 26 | . 2 . . . 5 3 . . . . 12 . . . . 4 . . . Full Trace Events 2 | . . . . . . . . . . . 2 . . . . . . . . Feedback Events . | . . . . . . . . . . . . . . . . . . . . Feedback Blocked . | . . . . . . . . . . . . . . . . . . . . Robot Schematics Acquired 9 | . . . . . . . . . . . . . . 9 . . . . . Robots Built . | . . . . . . . . . . . . . . . . . . . . Matter . | . . . . . . . . . . . . . . . . . . . . Time . | . . . . . . . . . . . . . . . . . . . . Total Robot Build Rating . | . . . . . . . . . . . . . . . . . . . . Part Schematics Acquired 11 | . . . . . 2 . . . . . . . . 8 . 1 . . . Parts Built 3 | . . . . . . . . . . . 3 . . . . . . . . Matter 306 | . . . . . . . . . . . 306 . . . . . . . . Time 101 | . . . . . . . . . . . 101 . . . . . . . . Total Part Build Rating 3 | . . . . . . . . . . . 3 . . . . . . . . Parts Repaired . | . . . . . . . . . . . . . . . . . . . . Time . | . . . . . . . . . . . . . . . . . . . . Parts Recycled . | . . . . . . . . . . . . . . . . . . . . Recycled Matter . | . . . . . . . . . . . . . . . . . . . . Retrieved Matter . | . . . . . . . . . . . . . . . . . . . . Retrieved Components 8 | . 8 . . . . . . . . . . . . . . . . . . Parts Scanalyzed 3 | . . . . . 2 . . . . . 1 . . . . . . . . Part Schematics Acquired 2 | . . . . . 2 . . . . . . . . . . . . . . Parts Damaged . | . . . . . . . . . . . . . . . . . . . . Bothacking | -11 -10 -10 -10 -9 -8 -7 -7 -7 -7 -6 -6 -6 -6 -6 -5 -5 -5 -5 -5 ------------ Run | Scr Mat Min Exi Min Mat Fac Low Low Zio Pro Fac Low Low Dat Pro Fac Upp Upp War Used RIF Installer . | . . . . . . . . . . . . . . . . . . . . Robots Hacked . | . . . . . . . . . . . . . . . . . . . . Non-combat . | . . . . . . . . . . . . . . . . . . . . Combat . | . . . . . . . . . . . . . . . . . . . . Robot Hacks Applied . | . . . . . . . . . . . . . . . . . . . . Relay Couplers Released . | . . . . . . . . . . . . . . . . . . . . Robots Rewired 1 | . . . . . 1 . . . . . . . . . . . . . . Allies Hacked . | . . . . . . . . . . . . . . . . . . . . Hacks Repelled . | . . . . . . . . . . . . . . . . . . . . Allies | -11 -10 -10 -10 -9 -8 -7 -7 -7 -7 -6 -6 -6 -6 -6 -5 -5 -5 -5 -5 -------- Run | Scr Mat Min Exi Min Mat Fac Low Low Zio Pro Fac Low Low Dat Pro Fac Upp Upp War Total Allies 8 | . . 3 . . 1 . . . 3 . . . . . 1 . . . . Largest Group 3 | . . 3 2 2 1 . . . 3 3 . . . . 1 . . . . Highest-Rated Group 94 | . . 40 23 23 16 . . . 84 84 . . . . 94 . . . . Highest-Rated Ally 94 | . . 16 16 16 16 . . . 31 31 . . . . 94 . . . . Total Orders 25 | . . . . . . . . . . . 10 . 9 . . . . . 6 EXPLORE 14 | . . . . . . . . . . . 4 . 7 . . . . . 3 RETURN 11 | . . . . . . . . . . . 6 . 2 . . . . . 3 Ally Attacks 32 | . . 4 . 1 3 . . . . 4 8 . 6 . 6 . . . . Total Damage 317 | . . 18 . 15 45 . . . . 65 . . . . 174 . . . . Kills 3 | . . 1 . . . . . . . 1 . . . . 1 . . . . Allies Corrupted 1 | . . . . . . . . . . . . . . . 1 . . . . Allies Melted 1 | . . . . . . . . . . . . . . . . . . . 1 Intel | -11 -10 -10 -10 -9 -8 -7 -7 -7 -7 -6 -6 -6 -6 -6 -5 -5 -5 -5 -5 ------- Run | Scr Mat Min Exi Min Mat Fac Low Low Zio Pro Fac Low Low Dat Pro Fac Upp Upp War Robot Analysis Total . | . . . . . . . . . . . . . . . . . . . . Derelict Logs Recovered 17 | . . 1 . 1 . . 1 2 1 1 . 2 2 . 3 . 2 1 . Drone Launches 27 | . . . . . . . . . . . 16 . 8 . . . . . 3 Drone Recoveries 10 | . . . . . . . . . . . 5 . 2 . . . . . 3 Exploration | -11 -10 -10 -10 -9 -8 -7 -7 -7 -7 -6 -6 -6 -6 -6 -5 -5 -5 -5 -5 ------------- Run | Scr Mat Min Exi Min Mat Fac Low Low Zio Pro Fac Low Low Dat Pro Fac Upp Upp War Turns Passed 35725 | 62 566 1087 897 570 885 470 4432 4267 1486 2672 2241 2567 2755 196 2686 916 2752 2867 1351 Spaces Moved 13419 | 42 235 583 495 299 393 224 962 924 1092 756 1220 1084 1019 94 832 433 1103 1002 627 Core 11 | 11 . . . . . . . . . . . . . . . . . . . Treads 892 | . . . . 1 159 120 . . . . 15 . . . 175 . . 296 126 Legs 1709 | 31 235 583 495 266 . . . . . . . . . . . . . . 99 Wheels 10807 | . . . . 32 234 104 962 924 1092 756 1205 1084 1019 94 657 433 1103 706 402 Hover . | . . . . . . . . . . . . . . . . . . . . Flight . | . . . . . . . . . . . . . . . . . . . . Fastest Speed 50 | 50 120 180 180 100 100 120 120 110 120 120 130 130 130 140 140 125 125 125 125 Average Speed 142 | 112 170 180 180 171 149 162 120 119 126 120 133 130 138 140 161 131 125 186 150 Slowest Speed 290 | 150 180 180 180 200 200 200 120 120 130 130 290 140 140 140 240 150 125 280 250 Overloaded Moves . | . . . . . . . . . . . . . . . . . . . . Propulsion Burnouts . | . . . . . . . . . . . . . . . . . . . . Robots Hopped . | . . . . . . . . . . . . . . . . . . . . Cave-ins Triggered 1 | . . . . . . . . . . . 1 . . . . . . . . Exploration Rate (%) 67 | 3 38 99 88 66 37 7 86 91 87 78 51 83 91 74 86 11 84 89 95 Regions Visited 19 Branch Regions 14 Pre-discovered Areas 11 | . 1 1 1 . . . . . 3 . . 1 1 1 1 . 1 . . Known Exits Taken 10 | . . . . . . 1 . . . 1 1 1 1 1 1 1 1 1 . Unknown Exits Taken 9 | 1 1 1 1 1 1 . 1 1 1 . . . . . . . . . . Scrap Searched 27 | . . 1 . 2 . . 1 5 2 4 . 2 4 . 2 . 2 2 . Spaces Dug 74 | . . . . . . 1 7 13 1 . 42 1 . . . 8 . 1 . Terrain Destroyed 689 | . 16 20 . 22 21 7 156 54 1 . 51 104 1 . 15 42 . 5 174 Melee 61 | . . . . . . 1 7 9 1 . 42 1 . . . . . . . Projectile 77 | . . . . . . . . 6 . . 4 . 1 . . 16 . 5 45 AOE 551 | . 16 20 . 22 21 6 149 39 . . 5 103 . . 15 26 . . 129 Terrain Rammed . | . . . . . . . . . . . . . . . . . . . . Walls Destroyed . | . . . . . . . . . . . . . . . . . . . . Machines Disabled . | . . . . . . . . . . . . . . . . . . . . Actions | -11 -10 -10 -10 -9 -8 -7 -7 -7 -7 -6 -6 -6 -6 -6 -5 -5 -5 -5 -5 --------- Run | Scr Mat Min Exi Min Mat Fac Low Low Zio Pro Fac Low Low Dat Pro Fac Upp Upp War Total 29298 | 54 353 605 502 341 598 311 4196 4034 1188 2517 1649 2202 2353 158 2134 717 2475 1985 926 Wait 14636 | . 40 3 5 26 114 36 3164 3035 72 1749 173 1062 1300 65 1238 159 1357 962 76 Move 13400 | 41 234 582 494 298 392 223 961 923 1091 755 1219 1083 1018 93 831 432 1102 1001 627 Hop . | . . . . . . . . . . . . . . . . . . . . Pick Up 241 | 7 25 3 1 1 18 14 9 17 10 1 47 6 8 . 10 32 5 3 24 Fast Attach 55 | 5 2 . . . 5 . 2 2 2 . 12 1 . . 5 3 . . 16 Attach 80 | 1 6 . 1 . 2 6 7 6 . 1 10 1 3 . 4 10 1 . 21 Detach 4 | . . . . . . . 1 . . . 1 . . . . . . . 2 Swap 237 | . 6 4 . 7 12 9 11 8 2 4 40 25 15 . 15 24 4 12 39 Drop 236 | . 12 4 1 2 11 12 13 14 8 5 51 5 5 . 13 24 5 2 49 Fire 323 | . 28 9 . 7 40 9 19 16 . 2 42 18 4 . 18 33 1 5 72 Melee 74 | . . . . . . 2 9 13 3 . 46 1 . . . . . . . Ram . | . . . . . . . . . . . . . . . . . . . . Kick . | . . . . . . . . . . . . . . . . . . . . Crush . | . . . . . . . . . . . . . . . . . . . . Escape Stasis 8 | . . . . . . . . . . . 8 . . . . . . . . Rewire 4 | . . . . . 4 . . . . . . . . . . . . . . Trap . | . . . . . . . . . . . . . . . . . . . . Miscellaneous . | . . . . . . . . . . . . . . . . . . . . Route ------- -11/Scrapyard -10/Materials -10/Mines (discovered 3 exits: [*Mat x2] / *Exi) -10/Exiles (discovered 2 exits: [*Min x2]) -9/Mines -8/Materials -7/Factory (discovered 2 exits: *Fac / *Low) -7/Lower Caves -7/Lower Caves (discovered 2 exits: *Fac / [*Zio]) -7/Zion -6/Proximity Caves -6/Factory (discovered 6 exits: *Fac x4 / *Low x2) -6/Lower Caves -6/Lower Caves (discovered 2 exits: *Fac / *Dat) -6/Data Miner -5/Proximity Caves -5/Factory (discovered 2 exits: *Upp x2) -5/Upper Caves -5/Upper Caves (discovered 2 exits: *Fac / *War) -5/Warlord (discovered 1 exit: [*Pro]) History --------- Turn | Location | Event 14 | -11/Scrapyard | Discovered new exit (range 15) 63 | -11/Scrapyard | Entered Materials 308 | -10/Materials | Build established: Mutant 562 | -10/Materials | Discovered new exit (range 13) 629 | -10/Materials | Entered Mines 723 | -10/Mines | Discovered new exit (range 15) 822 | -10/Mines | Assisted by bots powering up and referring to "LRC-V3" 928 | -10/Mines | Deemed a non-threat by the Exiles lab entrance 930 | -10/Mines | Discovered new exit (range 5) 1230 | -10/Mines | Learned location of Zion (-7) 1337 | -10/Mines | Found the Drone Emporium 1348 | -10/Mines | Found Prototype Device 1410 | -10/Mines | Discovered new exit (range 7) 1716 | -10/Mines | Entered Exiles 1716 | -10/Exiles | Accompanied by 2 allies 1740 | -10/Exiles | Discovered new exit (range 15) 1794 | -10/Exiles | Met 8R-AWN 1823 | -10/Exiles | Met EX-HEX 1949 | -10/Exiles | Met EX-DEC 1979 | -10/Exiles | Visited The Gauntlet 2245 | -10/Exiles | Discovered new exit (range 15) 2372 | -10/Exiles | Met EX-BIN 2613 | -10/Exiles | Entered Mines 2613 | -9/Mines | Accompanied by 2 allies 2727 | -9/Mines | Discovered new exit (range 12) 2797 | -9/Mines | Core integrity fell below 50% 2964 | -9/Mines | Learned Materials emergency access door positions 3109 | -9/Mines | Assembled infested the area 3114 | -9/Mines | Assisted by a Guerilla fighting off Assembled 3183 | -9/Mines | Entered Materials 3183 | -8/Materials | Evolved 4 slots: Utility x2, Weapon x2 3536 | -8/Materials | Build established: Hauler-Tank 3853 | -8/Materials | Discovered new exit (range 6) 3902 | -8/Materials | Identified Bomb Drone Bay 4068 | -8/Materials | Entered Factory 4068 | -7/Factory | Evolved 2 slots: Utility x2 4092 | -7/Factory | Discovered new exit (range 9) 4116 | -7/Factory | Identified exit to Factory 4517 | -7/Factory | Discovered new exit (range 7) 4523 | -7/Factory | Identified exit to Lower Caves 4538 | -7/Factory | Entered Lower Caves 5062 | -7/Lower Caves | Build established: Hauler-Assassin 6021 | -7/Lower Caves | Learned Factory emergency access door positions 6963 | -7/Lower Caves | Discovered new exit (range 8) 7414 | -7/Lower Caves | Acquired the password to a Derelict Tinkerer's latest research 7424 | -7/Lower Caves | Found Prototype Special Weapon 7424 | -7/Lower Caves | Identified Molecular Deconstructor 8357 | -7/Lower Caves | Caught by Unaware searching for contraband prototypes 8403 | -7/Lower Caves | Caught by Unaware searching for contraband prototypes 8970 | -7/Lower Caves | Entered another Lower Caves area 8975 | -7/Lower Caves | Discovered exit to Factory (range 16) 9355 | -7/Lower Caves | Lost 4 parts (1p3w) 9620 | -7/Lower Caves | Build established: Hauler-Skirmisher 9923 | -7/Lower Caves | Build established: Hauler-Assassin 10894 | -7/Lower Caves | Attacked by a delusional Derelict stockpiling parts 11065 | -7/Lower Caves | Discovered new exit (range 12) 11188 | -7/Lower Caves | Build established: Hauler-Skirmisher 12047 | -7/Lower Caves | Build established: Hauler-Assassin 12161 | -7/Lower Caves | Learned 12 Factory zone layouts 12192 | -7/Lower Caves | Learned Factory emergency access door positions 13237 | -7/Lower Caves | Entered Zion 13340 | -7/Zion | Discovered new exit (range 19) 13396 | -7/Zion | Given the Hacking Drone Bay 13397 | -7/Zion | Found Prototype Device 13533 | -7/Zion | System corruption cleaned by Quarantine Array 13603 | -7/Zion | Gained Derelict followers 13695 | -7/Zion | Learned location of Armory (-4) 13793 | -7/Zion | Learned location of 1 exit from Proximity Caves 13908 | -7/Zion | Learned location of Quarantine (-2) 14000 | -7/Zion | Build established: Hauler-Mutant 14365 | -7/Zion | Found CR-A16's Pointy Stick 14723 | -7/Zion | Entered Proximity Caves 14723 | -6/Proximity Caves | Accompanied by 3 allies 14945 | -6/Proximity Caves | Learned location of 1 exit from Factory 15028 | -6/Proximity Caves | Build established: Hauler-Assassin 16046 | -6/Proximity Caves | Spotted B-75 Beast 16359 | -6/Proximity Caves | Build established: Hauler-Skirmisher 17395 | -6/Proximity Caves | Entered Factory 17395 | -6/Factory | Evolved 2 slots: Utility x2 17396 | -6/Factory | Identified exit to Factory 17397 | -6/Factory | Identified exit to Lower Caves 17447 | -6/Factory | Found Launcher Loader 17521 | -6/Factory | Crushed by falling debris 18259 | -6/Factory | Discovered exit to Factory (range 5) 18750 | -6/Factory | Fabricated Lrg. Storage Unit (x1) 19367 | -6/Factory | Fabricated Lrg. Storage Unit (x1) 19393 | -6/Factory | Fabricated Lrg. Storage Unit (x1) 19429 | -6/Factory | Discovered exit to Factory (range 12) 19636 | -6/Factory | Entered Lower Caves 20149 | -6/Lower Caves | Build established: Hauler-Assassin 20942 | -6/Lower Caves | Discovered new exit (range 15) 21856 | -6/Lower Caves | Build established: Hauler-Skirmisher 21874 | -6/Lower Caves | Learned 4 Factory zone layouts 22197 | -6/Lower Caves | Identified exit to Lower Caves 22203 | -6/Lower Caves | Entered another Lower Caves area 22333 | -6/Lower Caves | Encountered a Warlord checkpoint 22341 | -6/Lower Caves | Discovered exit to Factory (range 10) 24132 | -6/Lower Caves | Learned Factory trap positions 24379 | -6/Lower Caves | Discovered new exit (range 19) 24659 | -6/Lower Caves | Learned location of Extension (-4) 24957 | -6/Lower Caves | Identified exit to Data Miner 24958 | -6/Lower Caves | Entered Data Miner 24958 | -6/Data Miner | Discovered new exit (range 7) 25038 | -6/Data Miner | Met Data Miner 25093 | -6/Data Miner | Learned location of Section 7 (-2) 25093 | -6/Data Miner | Acquired the access code to Warlord's prototype stash 25119 | -6/Data Miner | Received God Mode back door access code from Data Miner 25152 | -6/Data Miner | Identified exit to Proximity Caves 25154 | -6/Data Miner | Entered Proximity Caves 25295 | -5/Proximity Caves | Learned Factory emergency access door positions 25298 | -5/Proximity Caves | Found Alien Artifact 25298 | -5/Proximity Caves | Identified Dimensional Node Initializer 25298 | -5/Proximity Caves | Initialized slip node 25325 | -5/Proximity Caves | Spotted B-75 Beast 25361 | -5/Proximity Caves | Destroyed B-75 Beast 25815 | -5/Proximity Caves | Escorted by Enhanced Grunt 26530 | -5/Proximity Caves | Learned Factory emergency access door positions 26792 | -5/Proximity Caves | Discovered exit to Factory (range 22) 27840 | -5/Proximity Caves | Entered Factory 27840 | -5/Factory | Evolved 2 slots: Propulsion x1, Utility x1 27842 | -5/Factory | Loaded intel: 115 trap records 27981 | -5/Factory | Identified exit to Upper Caves 28238 | -5/Factory | Build established: Hauler-Mutant 28242 | -5/Factory | Lost 3 parts (1p1n1w) 28756 | -5/Factory | Entered Upper Caves 28882 | -5/Upper Caves | Build established: Hauler-Skirmisher 30593 | -5/Upper Caves | Learned location of 1 exit from Factory 31110 | -5/Upper Caves | Discovered new exit (range 9) 31465 | -5/Upper Caves | Identified exit to Upper Caves 31508 | -5/Upper Caves | Entered another Upper Caves area 32038 | -5/Upper Caves | Discovered new exit (range 21) 32273 | -5/Upper Caves | Identified exit to Factory 33393 | -5/Upper Caves | Learned Factory terminal intel 33741 | -5/Upper Caves | Discovered new exit (range 17) 34371 | -5/Upper Caves | Identified exit to Warlord 34375 | -5/Upper Caves | Entered Warlord 34429 | -5/Warlord | Discovered new exit (range 27) 34492 | -5/Warlord | Found Prototype Device 34492 | -5/Warlord | Identified Minesniffer Drone Bay 34639 | -5/Warlord | Visited the Vortex Lab 34650 | -5/Warlord | Found Prototype Energy Gun 34652 | -5/Warlord | Found Prototype Energy Gun 34654 | -5/Warlord | Warlord's base attacked by MAIN.C 34662 | -5/Warlord | Build established: Hauler-Mutant 34745 | -5/Warlord | Met Warlord 34761 | -5/Warlord | Opened Warlord's prototype stash 34765 | -5/Warlord | Found Prototype Device 34765 | -5/Warlord | Identified System Purifier 34769 | -5/Warlord | Found Prototype Processor 34769 | -5/Warlord | Identified Exp. Core Analyzer 34773 | -5/Warlord | Found Prototype Hackware 34780 | -5/Warlord | Found Prototype Device 34781 | -5/Warlord | Identified Exp. Phase Shifter 34993 | -5/Warlord | Spotted Executioner 35004 | -5/Warlord | Warlord forces counterattacked 35027 | -5/Warlord | Destroyed 8 combat bots 35056 | -5/Warlord | Spotted Executioner 35060 | -5/Warlord | Spotted Executioner 35062 | -5/Warlord | Build established: Hauler-Gunner 35102 | -5/Warlord | Found Exp. Targeting Computer 35157 | -5/Warlord | Spotted Executioner 35163 | -5/Warlord | Destroyed Executioner 35214 | -5/Warlord | Found Prototype Device 35215 | -5/Warlord | Identified Adv. Kinecellerator 35255 | -5/Warlord | Spotted Executioner 35256 | -5/Warlord | Spotted Striker 35329 | -5/Warlord | Warlord base infiltrated, sounded retreat 35361 | -5/Warlord | Spotted Striker 35380 | -5/Warlord | Destroyed Striker 35401 | -5/Warlord | Destroyed 10 combat bots 35412 | -5/Warlord | Build established: Scavenger-Gunner 35454 | -5/Warlord | Spotted B-86 Titan 35456 | -5/Warlord | Spotted B-75 Beast 35456 | -5/Warlord | Spotted Executioner 35456 | -5/Warlord | Spotted Striker 35468 | -5/Warlord | Destroyed B-75 Beast 35494 | -5/Warlord | Lost 4 parts (1p1n1u1w) 35627 | -5/Warlord | Spotted Striker 35650 | -5/Warlord | Destroyed Striker 35663 | -5/Warlord | Spotted Striker 35676 | -5/Warlord | Spotted Striker 35680 | -5/Warlord | Destroyed Striker 35681 | -5/Warlord | Core integrity fell below 50% 35704 | -5/Warlord | Destroyed 20 combat bots 35720 | -5/Warlord | Core integrity fell below 20% 35722 | -5/Warlord | System corruption reached 10% 35726 | -5/Warlord | Destroyed by P-70 Sage with High-powered Shock Rifle Last Messages --------------- 35716_ Dropped Hcp. Storage Unit. 35717_ P-80 Master suffers critical hit. 35718_ P-80 Master resets P-70 Sage, system corruption cleaned. 35719_ P-70 Sage resets P-80 Master, system corruption cleaned. 35720_ Acquired System Purifier. 35721_ Dropped Tri-rail Accelerator. 35721_ Hvy. Flak Cannon destroyed. 35721_ Adv. Cooling System destroyed. 35722_ Dropped Lrg. Storage Unit. 35722_ P-80 Master resets P-70 Sage, system corruption cleaned. 35722_ Dropped Energy Well. 35723_ Dropped Adv. Kinecellerator. 35723_ Dropped Coil Gun. 35723_ Mic. Fission Core destroyed. 35723_ Arm. Medium Treads destroyed. 35724_ P-70 Sage resets P-80 Master, system corruption cleaned. 35724_ Adv. Shield Generator destroyed. 35725_ Dropped Imp. Transmission Jammer. 35725_ Dropped Lrn. Terrain Scanner. 35726_ Dropped Hyp. Gauss Cannon. Map ----- +----------------------------------------------------+ | ####################### #### ########### | | ####################?## #?## #####?##### | | ####################### #### #########?# | | ############?## [ # #^^^#### #########?# | | #######?######"" "" # #### #######?### | | ############# # + #?######### | | #############" + #### ########??# | | ##############"""" # #### ######?#### | | "###########?###""# # ########+########""##### | | "############?######### #######""##### | | "###################### #######""###?# | | "#### ########## #######""##?## | | #### ########## #####?#""##### | | #### ! ########## #### #######"" | | +#### [!! ########## # # "" = | | ### [[ ######### # ""=%[ | | + #?######## # ! "" =%! | | ##### ########## % %* | | ##### ######?## g [=%!% | | ##### ########## p g =%%%% | | #########/######?##### p p = *%%%% | | ^ ;;;;;;### ; p g ""!=! | | ^ p[p % p "%! | | ######;;;p ! pp# "" # | | ##/############ ; !![ ### #####""##### | | ## ### ##; ]!@!] #### ####""#?#?# | | ## ### #### !!!! ### ###""###?# | | ## ####### ![ ### ####""##### | | ## ######## #### ####""##### | | ## ######## ### ###""##### | | ## ######## ## ##??######? | | # ######### ### ###?##?#### | | # ###?#?### """"" ##########? | | / ######### """"" ; #?######### | | ################## """"" ; " "" " ######?#?#? | | ################## ; """""" # #??#?# | | ########?####?##############; """" # ##?### | | #########?######?## ; # ####?# | | #### #########?# # + ###??# | | #### + ######### ]] + ######### #?###? | | #### # ####?##?# ! ] # #### #### #??##? | | ##### # ## ####?# !! # ^ ## #?##?# | | #?### # #?# # #########??? | | ########## #?# # #?????????## | | ########## #?# # #?????#?#??? | | ##### + ### # ^ #??????????# | | #??## ####### ###+######## ^ #???????##?# | | #?###^ #?#???# #??????#???# | | ##### ##????# ## # ^#????????#?? | | ##### #?#?#?#++########+######## #######????# | +----------------------------------------------------+ Best States ------------- Heat Dissipation 71 Coolant Potential 80 Energy Generation 21 Energy Capacity 325 Matter Stores 300 Matter Capacity 300 Sight Range 23 Robot Scan Range 20 Terrain Scan Range 24 Terrain Scan Density 210 Jamming Range 12 Armor Coverage 450 Resistance: KI 25 Resistance: TH 25 Weapon Cycling 20 Phase Shifting 20 Evasion (%) 60 Targeting Accuracy 16 Core Analysis 15 Armor Integrity Analysis 66 Recoil Reduction 3 Kinecelleration 50 Offensive Hacking 12 Defensive Hacking 11 Item Schematics ----------------- Lrg. Storage Unit | -8/Materials | Scanalyzed Imp. Terrain Scan Processor | -8/Materials | Scanalyzed Combat Drone Bay | -6/Data Miner | Free Lgt. Regenerative Plating | -6/Data Miner | Free Triangulator | -6/Data Miner | Free Exp. Sensor Array | -6/Data Miner | Free Exp. Targeting Computer | -6/Data Miner | Free Exp. Transmission Jammer | -6/Data Miner | Free Cloaking Device | -6/Data Miner | Free Kinetic Spear | -6/Data Miner | Free Hcp. Storage Unit | -5/Factory | Hacked Robot Schematics ------------------ S-27 Virus | -6/Data Miner | Free G-50 Soldier | -6/Data Miner | Free G-67 Veteran | -6/Data Miner | Free L-41 Fighter | -6/Data Miner | Free X-72 Disruptor | -6/Data Miner | Free H-66 Slayer | -6/Data Miner | Free P-70 Sage | -6/Data Miner | Free I-36 Angel | -6/Data Miner | Free I-47 Archangel | -6/Data Miner | Free Fabricated ------------ Lrg. Storage Unit | x1 | -6/Factory Lrg. Storage Unit | x1 | -6/Factory Lrg. Storage Unit | x1 | -6/Factory Alien Tech Used ----------------- Dimensional Node Initializer Achievements -------------- None Challenges ------------ None Game ------ Seed TargetingVariableFlamer Manual? 0 Play Time 03:30:07 Cumulative 143.4 hours Start 2021.01.12 @ 20:23:58 End 2021.01.13 @ 12:44:23 Sessions 3 Manual Loads 0 Difficulty Rogue Special Mode None Game No. 35 Rogue 35 Adventurer 0 Explorer 0 Win Type - Total 11 Types 6/2/1/1/1/0/0/0/0 Lore% 46 Gallery% 73 Achievement% 60 Wizard Run 0 Options --------- ASCII 0 Keyboard 0 Movement Numpad Keybinds 0 Fullscreen 1 Font 18/TerminusBold Map View 76x50 Tactical HUD 1 Map Filters NONE Filters NONE Steam 1 RUN: e8269027-ff88-488f-8c51-258106e17e6a